bitfinex/quotes_BTCUSD_20250211
["timestamp","ask_amount","ask_price","bid_price","bid_amount"]
[1739293905296,0.0001066,96311.0,96310.0,0.3043289]
[1739293906031,0.0011066,96311.0,96310.0,0.3133289]
[1739293906229,0.0011066,96311.0,96310.0,0.21082525]
[1739293906638,0.00093732,96311.0,96310.0,0.21082525]
[1739293907558,0.00093732,96311.0,96310.0,0.05507825]
[1739293908251,0.21382671,96311.0,96310.0,0.02271608]
[1739293908439,0.30798597,96311.0,96310.0,0.02271608]
[1739293909030,0.86504865,96311.0,96310.0,0.0103984]
[1739293909431,0.86604865,96311.0,96310.0,0.0103984]
[1739293909585,0.9685523,96311.0,96310.0,0.0103984]
[1739293909799,0.9675523,96311.0,96310.0,0.0063984]
[1739293910229,1.5424523,96311.0,96310.0,0.0073984]
[1739293910816,1.5424523,96311.0,96310.0,0.001]
[1739293911215,1.5484523,96311.0,96310.0,0.002]
[1739293911420,0.436966,96298.0,96281.0,0.08270615]
[1739293911648,0.436966,96298.0,96267.0,0.00022386]
[1739293911649,0.155808,96272.0,96267.0,0.00022386]
[1739293912001,0.38951165,96272.0,96267.0,0.00022386]
[1739293912225,0.155815,96268.0,96267.0,0.00022386]
[1739293912450,0.0488,96272.0,96267.0,0.00022386]
[1739293912667,0.155811,96270.0,96252.0,0.155839]
[1739293912851,0.01568499,96269.0,96246.0,0.00010164]
[1739293912982,0.155817,96267.0,96257.0,0.155831]
[1739293913183,0.1312,96281.0,96246.0,0.00010164]
[1739293913428,0.155829,96260.0,96247.0,0.207798]
[1739293913648,0.155823,96263.0,96253.0,0.155838]
[1739293913849,0.155825,96262.0,96251.0,0.15584]
[1739293914108,0.003,96272.0,96251.0,0.15584]
[1739293914398,0.155823,96263.0,96252.0,0.15584]
[1739293914612,0.155823,96263.0,96246.0,0.00010164]
[1739293914613,0.207753,96269.0,96246.0,0.00010164]
[1739293914756,0.155824,96263.0,96246.0,0.00010164]
[1739293915095,0.1312,96281.0,96246.0,0.00010164]
[1739293915362,0.155815,96268.0,96257.0,0.155832]
[1739293915529,0.006,96272.0,96252.0,0.0775]
[1739293915730,0.006,96272.0,96267.0,0.155815]
[1739293915939,0.006,96272.0,96253.0,0.10250365]
[1739293916092,0.155799,96278.0,96268.0,0.155814]
[1739293916465,0.01,96281.0,96255.0,0.173]
[1739293916595,0.01,96281.0,96280.0,0.155795]
[1739293916796,0.155769,96296.0,96269.0,0.00103858]
[1739293917013,0.207684,96300.0,96270.0,0.10250365]
[1739293917188,0.408,96308.0,96272.0,0.0775]
[1739293917382,0.005,96278.0,96275.0,0.207738]
[1739293917587,0.207686,96300.0,96276.0,0.13479697]
[1739293917841,0.2077,96293.0,96272.0,0.0775]
[1739293918045,0.02087389,96292.0,96273.0,0.05850364]
[1739293918226,0.02087389,96292.0,96283.0,0.15579]
[1739293918470,0.155767,96298.0,96284.0,0.155787]
[1739293918668,0.71830422,96308.0,96284.0,0.155787]
[1739293918870,0.10250365,96307.0,96286.0,0.155785]
[1739293919069,0.009,96296.0,96287.0,0.155783]
[1739293919250,0.009,96296.0,96273.0,0.05850364]
[1739293919449,0.155765,96299.0,96275.0,0.207738]
[1739293919677,0.155765,96299.0,96288.0,0.155781]
[1739293919870,0.207681,96302.0,96284.0,0.001]
[1739293920116,0.003,96292.0,96284.0,0.001]
[1739293920300,0.003,96292.0,96288.0,0.155781]
[1739293920805,0.160766,96299.0,96288.0,0.155781]
[1739293921326,0.0576123,96298.0,96288.0,0.155781]
[1739293921539,0.0576123,96298.0,96275.0,0.001]
[1739293921540,0.10250365,96297.0,96275.0,0.001]
[1739293921894,0.0494,96294.0,96275.0,0.001]
[1739293922117,0.10354259,96293.0,96275.0,0.001]
[1739293922321,0.0809,96292.0,96275.0,0.001]
[1739293922502,0.10354259,96291.0,96261.0,0.08270615]
[1739293922707,0.02338426,96290.0,96284.0,0.001]
[1739293922919,0.155787,96285.0,96284.0,0.001]
[1739293923129,0.155787,96285.0,96249.0,0.1245]
[1739293923130,0.155801,96277.0,96263.0,0.155822]
[1739293923372,0.10250365,96276.0,96257.0,0.00968416]
[1739293923567,0.25830565,96276.0,96275.0,0.001]
[1739293924067,0.20772,96283.0,96257.0,0.00968416]
[1739293924298,0.10250365,96282.0,96257.0,0.00968416]
[1739293924509,0.15564893,96274.0,96259.0,0.155828]
[1739293924696,0.155814,96269.0,96257.0,0.0097858]
[1739293924865,0.05711159,96274.0,96257.0,0.0097858]
[1739293925215,0.002,96277.0,96258.0,0.155829]
[1739293925386,0.001,96276.0,96257.0,0.00010164]
[1739293925588,0.10350365,96276.0,96257.0,0.00010164]
[1739293925812,0.155812,96270.0,96257.0,0.00010164]
[1739293926002,0.155813,96269.0,96257.0,0.00010164]
[1739293926209,0.155811,96271.0,96257.0,0.15593364]
[1739293926371,0.00103894,96270.0,96257.0,0.15593364]
[1739293926837,0.155815,96268.0,96257.0,0.00010164]
[1739293926967,0.15685094,96270.0,96257.0,0.00010164]
[1739293927346,0.001,96269.0,96257.0,0.00110164]
[1739293927548,0.00103894,96268.0,96241.0,0.15]
[1739293927660,0.155818,96266.0,96253.0,0.155838]
[1739293927864,0.00103894,96268.0,96244.0,0.15]
[1739293927865,0.15785494,96268.0,96244.0,0.15]
[1739293928072,0.00203894,96268.0,96256.0,0.155834]
[1739293928477,0.15785394,96268.0,96257.0,0.001]
[1739293928672,0.15583,96259.0,96257.0,0.001]
[1739293929217,0.286057,96267.0,96254.0,0.00022386]
[1739293929610,0.207757,96266.0,96254.0,0.00022386]
[1739293929800,0.208757,96266.0,96254.0,0.00022386]
[1739293930070,0.00103894,96265.0,96254.0,0.00022386]
[1739293930222,0.155829,96259.0,96254.0,0.00022386]
[1739293930435,0.155824,96263.0,96254.0,0.00022386]
[1739293931007,0.15582,96265.0,96254.0,0.00022386]
[1739293931224,0.01186102,96271.0,96254.0,0.00022386]
[1739293931431,0.15582,96265.0,96254.0,0.00022386]
[1739293931630,0.207725,96281.0,96254.0,0.00022386]
[1739293931830,0.10250365,96281.0,96256.0,0.078]
[1739293932082,0.10250365,96281.0,96258.0,0.207774]
[1739293932279,0.10250365,96281.0,96256.0,0.078]
[1739293932431,0.207727,96280.0,96256.0,0.03399999]
[1739293932639,0.155806,96274.0,96263.0,0.155822]
[1739293932959,0.003,96271.0,96270.0,0.155811]
[1739293933426,0.003,96271.0,96270.0,0.1568497]
[1739293933599,0.003,96271.0,96270.0,0.155811]
[1739293934222,0.001,96271.0,96270.0,0.157811]
[1739293935002,0.001,96271.0,96270.0,0.26331465]
[1739293935426,0.155766,96298.0,96270.0,0.10550365]
[1739293935627,0.00024014,96293.0,96290.0,0.155779]
[1739293935800,0.00024014,96293.0,96271.0,0.10250365]
[1739293936003,0.00024014,96293.0,96292.0,0.155776]
[1739293936610,0.00124014,96293.0,96292.0,0.155776]
[1739293937187,0.00024014,96293.0,96292.0,0.155776]
[1739293937565,0.00124014,96293.0,96292.0,0.001]
[1739293938236,0.00124014,96293.0,96292.0,0.157776]
[1739293938473,0.00124014,96293.0,96292.0,0.002]
[1739293938830,0.00124014,96293.0,96292.0,0.157776]
[1739293940262,0.00124014,96293.0,96292.0,0.002]
[1739293940677,0.00124014,96293.0,96292.0,0.10450365]
[1739293940879,0.00124014,96293.0,96292.0,0.157776]
[1739293941097,0.00124014,96293.0,96292.0,0.15799986]
[1739293941575,0.00124014,96293.0,96292.0,0.00222386]
[1739293941807,0.00124014,96293.0,96292.0,0.15799986]
[1739293941975,0.00024014,96293.0,96292.0,0.15599986]
[1739293942122,0.00024014,96293.0,96292.0,0.15699986]
[1739293942323,0.00124014,96293.0,96292.0,0.00222386]
[1739293942525,0.00124014,96293.0,96288.0,0.155781]
[1739293942725,0.00124014,96293.0,96290.0,0.155778]
[1739293943149,0.00024014,96293.0,96289.0,0.15578]
[1739293943420,0.00124014,96293.0,96292.0,0.001]
[1739293943871,0.00124014,96293.0,96281.0,0.207723]
[1739293944074,0.00024014,96293.0,96287.0,0.155782]
[1739293944279,0.00024014,96293.0,96292.0,0.001]
[1739293944628,0.00024014,96293.0,96289.0,0.15578]
[1739293944833,0.00024014,96293.0,96279.0,0.22823659]
[1739293945060,0.00024014,96293.0,96279.0,0.33074024]
[1739293945257,0.00124014,96293.0,96290.0,0.155778]
[1739293945484,0.00124014,96293.0,96292.0,0.155776]
[1739293945699,0.00024014,96293.0,96292.0,0.25827965]
[1739293945897,0.00024014,96293.0,96292.0,0.48747965]
[1739293946098,0.00424014,96293.0,96292.0,0.5198109]
[1739293946558,0.00024014,96293.0,96292.0,0.5198109]
[1739293946788,0.00124014,96293.0,96292.0,0.5198109]
[1739293947183,0.155718,96328.0,96316.0,0.207649]
[1739293947425,0.155722,96326.0,96294.0,0.15]
[1739293947626,0.155722,96326.0,96296.0,0.15]
[1739293947904,0.15616311,96328.0,96298.0,0.15]
[1739293948071,0.155719,96327.0,96319.0,0.155731]
[1739293948284,0.155719,96327.0,96317.0,0.155734]
[1739293949081,0.207628,96326.0,96302.0,0.35768]
[1739293949289,0.00144511,96328.0,96311.0,0.155744]
[1739293949524,0.155724,96324.0,96313.0,0.15574]
[1739293949742,0.155723,96325.0,96314.0,0.15574]
[1739293949898,0.00144511,96328.0,96306.0,0.0208185]
[1739293950097,0.155721,96326.0,96315.0,0.155737]
[1739293950384,0.00044511,96328.0,96307.0,0.10250365]
[1739293950513,0.155719,96327.0,96314.0,0.207653]
[1739293950721,0.155719,96327.0,96316.0,0.155736]
[1739293950918,0.00044511,96328.0,96317.0,0.155734]
[1739293951141,0.155719,96327.0,96315.0,0.155737]
[1739293951569,0.155719,96327.0,96316.0,0.155737]
[1739293951824,0.001,96327.0,96307.0,0.10250365]
[1739293952023,0.00044511,96328.0,96322.0,0.155726]
[1739293952284,0.00044511,96328.0,96320.0,0.36337]
[1739293952617,0.00044511,96328.0,96314.0,0.15574]
[1739293952818,0.00044511,96328.0,96315.0,0.207651]
[1739293953036,0.00044511,96328.0,96314.0,0.10250365]
[1739293953412,0.001,96327.0,96324.0,0.155723]
[1739293953625,0.00044511,96328.0,96323.0,0.155726]
[1739293953838,0.00144511,96328.0,96323.0,0.155726]
[1739293954262,0.00044511,96328.0,96322.0,0.155727]
[1739293954473,0.00044511,96328.0,96315.0,0.001]
[1739293954628,0.00144511,96328.0,96320.0,0.00022386]
[1739293954837,0.00055171,96328.0,96320.0,0.00022386]
[1739293955061,0.00155171,96328.0,96320.0,0.00022386]
[1739293955265,0.00155171,96328.0,96323.0,0.155726]
[1739293955570,0.00155171,96328.0,96325.0,0.155722]
[1739293955814,0.00155171,96328.0,96324.0,0.001]
[1739293956366,0.00155171,96328.0,96323.0,0.155725]
[1739293956532,0.00055171,96328.0,96324.0,0.155724]
[1739293956737,0.00055171,96328.0,96325.0,0.155722]
[1739293956937,0.00155171,96328.0,96325.0,0.155722]
[1739293957138,0.00055171,96328.0,96323.0,0.001]
[1739293957559,0.00155171,96328.0,96302.0,0.023]
[1739293957924,0.00055171,96328.0,96302.0,0.023]
[1739293958134,0.00155171,96328.0,96302.0,0.023]
[1739293958349,0.207626,96327.0,96308.0,0.155749]
[1739293958584,0.207626,96327.0,96308.0,0.155748]
[1739293958788,0.155735,96318.0,96308.0,0.15575]
[1739293958992,0.0458,96317.0,96284.0,0.0773]
[1739293959216,0.3714,96317.0,96288.0,0.10250365]
[1739293959421,0.3714,96317.0,96294.0,0.155772]
[1739293959422,0.155756,96305.0,96294.0,0.155772]
[1739293959580,0.207669,96307.0,96290.0,0.02058358]
[1739293959780,0.155753,96306.0,96291.0,0.155777]
[1739293959979,0.155753,96306.0,96290.0,0.02058358]
[1739293959980,0.155753,96306.0,96295.0,0.15577]
[1739293960176,0.3714,96317.0,96290.0,0.02058358]
[1739293960177,0.3784,96317.0,96290.0,0.02058358]
[1739293960379,0.15575,96309.0,96297.0,0.155766]
[1739293960596,0.15575,96308.0,96290.0,0.02058358]
[1739293960853,0.15575,96308.0,96296.0,0.155768]
[1739293961046,0.001,96306.0,96294.0,0.207696]
[1739293961216,0.001,96306.0,96290.0,0.02058358]
[1739293961423,0.001,96306.0,96297.0,0.155766]
[1739293961717,0.001,96306.0,96290.0,0.02058358]
[1739293961922,0.001,96306.0,96299.0,0.155764]
[1739293962122,0.001,96306.0,96290.0,0.02058358]
[1739293962303,0.3744,96317.0,96296.0,0.155768]
[1739293962497,0.10250365,96316.0,96292.0,0.2077]
[1739293962721,0.001,96308.0,96297.0,0.155767]
[1739293962921,0.001,96308.0,96298.0,0.155765]
[1739293963263,0.155748,96309.0,96297.0,0.155766]
[1739293963470,0.3714,96317.0,96290.0,0.02058358]
[1739293963471,0.001,96306.0,96290.0,0.02058358]
[1739293963732,0.001,96306.0,96264.0,0.207759]
[1739293963733,0.0823,96300.0,96265.0,0.16000615]
[1739293963912,0.0823,96300.0,96265.0,0.08270615]
[1739293963913,0.207731,96279.0,96265.0,0.08270615]
[1739293964134,0.207722,96283.0,96265.0,0.08270615]
[1739293964444,0.5379,96288.0,96255.0,0.10250365]
[1739293964594,0.10250365,96287.0,96255.0,0.10250365]
[1739293964799,0.0823,96276.0,96254.0,0.00022386]
[1739293965388,0.155816,96268.0,96254.0,0.0003574]
[1739293965596,0.155823,96263.0,96254.0,0.0003574]
[1739293965803,0.5379,96273.0,96254.0,0.0003574]
[1739293966002,0.15582,96265.0,96254.0,0.0003574]
[1739293966634,0.155822,96264.0,96254.0,0.0003574]
[1739293967485,0.15582,96265.0,96246.0,0.207799]
[1739293967690,0.15682,96265.0,96246.0,0.31030265]
[1739293968053,0.155819,96266.0,96248.0,0.155845]
[1739293968253,0.001,96264.0,96250.0,0.155842]
[1739293968496,0.207751,96269.0,96247.0,0.155849]
[1739293968688,0.155818,96266.0,96249.0,0.155844]
[1739293969014,0.155818,96266.0,96250.0,0.155842]
[1739293969316,0.155821,96265.0,96250.0,0.155842]
[1739293969514,0.155818,96266.0,96251.0,0.155841]
[1739293969840,0.207755,96267.0,96249.0,0.207794]
[1739293969841,0.157821,96265.0,96249.0,0.207794]
[1739293970016,0.001,96265.0,96251.0,0.155841]
[1739293970269,0.5379,96270.0,96249.0,0.155845]
[1739293970401,0.155821,96264.0,96250.0,0.155844]
[1739293970606,0.001,96265.0,96250.0,0.155844]
[1739293970807,0.156819,96265.0,96250.0,0.155844]
[1739293971012,0.156819,96265.0,96247.0,0.02091939]
[1739293971013,0.155825,96262.0,96247.0,0.02091939]
[1739293971243,0.155834,96257.0,96246.0,0.00022386]
[1739293971450,0.155831,96258.0,96246.0,0.00022386]
[1739293971894,0.155829,96260.0,96246.0,0.00022386]
[1739293972245,0.208761,96264.0,96246.0,0.00022386]
[1739293972246,0.155823,96263.0,96246.0,0.00022386]
[1739293972436,0.155827,96261.0,96246.0,0.15607386]
[1739293972600,0.155828,96260.0,96246.0,0.15607386]
[1739293973471,0.0748661,96263.0,96246.0,0.00022386]
[1739293973674,0.155831,96259.0,96246.0,0.00022386]
[1739293974075,0.155833,96257.0,96246.0,0.00022386]
[1739293974303,0.15583,96259.0,96246.0,0.00022386]
[1739293974509,0.001,96260.0,96246.0,0.00022386]
[1739293975226,0.155833,96257.0,96246.0,0.00022386]
[1739293975461,0.208772,96260.0,96246.0,0.00022386]
[1739293975724,0.3256,96259.0,96246.0,0.00022386]
[1739293975924,0.155831,96258.0,96246.0,0.00022386]
[1739293976690,0.155832,96258.0,96246.0,0.00022386]
[1739293977210,0.155832,96258.0,96246.0,0.15607386]
[1739293977364,0.155833,96257.0,96246.0,0.15607386]
[1739293977563,0.156831,96258.0,96246.0,0.15607386]
[1739293978507,0.156831,96258.0,96246.0,0.00022386]
[1739293978787,0.155835,96256.0,96241.0,0.02070592]
[1739293978959,0.156833,96257.0,96241.0,0.02083938]
[1739293979343,0.156833,96257.0,96242.0,0.155855]
[1739293979550,0.155833,96257.0,96243.0,0.155855]
[1739293979753,0.155832,96257.0,96241.0,0.02083938]
[1739293979956,0.207781,96255.0,96241.0,0.00013346]
[1739293980279,0.155834,96257.0,96242.0,0.155856]
[1739293980449,0.3256,96259.0,96241.0,0.00013346]
[1739293980612,0.3256,96259.0,96241.0,0.00035732]
[1739293980613,0.155837,96255.0,96241.0,0.00035732]
[1739293980813,0.001,96257.0,96241.0,0.00035732]
[1739293981065,0.156833,96257.0,96241.0,0.15621532]
[1739293981242,0.001,96257.0,96243.0,0.001]
[1739293981451,0.156833,96257.0,96243.0,0.001]
[1739293981654,0.156832,96257.0,96241.0,0.15621532]
[1739293981832,0.10250365,96257.0,96241.0,0.00135732]
[1739293982039,0.155849,96247.0,96241.0,0.00135732]
[1739293982266,0.155844,96250.0,96241.0,0.00135732]
[1739293982475,0.155846,96249.0,96231.0,0.155874]
[1739293982679,0.155847,96248.0,96230.0,0.155876]
[1739293982880,0.155847,96248.0,96231.0,0.155874]
[1739293983286,0.00013341,96249.0,96230.0,0.02089702]
[1739293983483,0.00013341,96249.0,96229.0,0.155876]
[1739293983684,0.155857,96242.0,96228.0,0.0771]
[1739293983916,0.15586,96240.0,96225.0,0.0204829]
[1739293984070,0.155853,96244.0,96243.0,0.001]
[1739293984266,0.8635,96248.0,96225.0,0.0204829]
[1739293984267,0.15586,96240.0,96225.0,0.0204829]
[1739293984518,0.155855,96244.0,96226.0,0.155882]
[1739293984717,0.15586,96240.0,96225.0,0.0204829]
[1739293984921,0.155858,96242.0,96225.0,0.1763659]
[1739293985090,0.207802,96246.0,96226.0,0.155881]
[1739293985272,0.8635,96248.0,96226.0,0.155881]
[1739293985475,0.001,96244.0,96226.0,0.207844]
[1739293985671,0.001,96244.0,96229.0,0.155877]
[1739293985672,0.156854,96244.0,96229.0,0.155877]
[1739293985880,0.001,96244.0,96228.0,0.207838]
[1739293986147,0.001,96244.0,96225.0,0.0204829]
[1739293986148,0.001,96244.0,96229.0,0.10250365]
[1739293986346,0.001,96244.0,96243.0,0.155855]
[1739293986983,0.002,96244.0,96243.0,0.155855]
[1739293987564,0.001,96244.0,96241.0,0.20781]
[1739293987763,0.002,96244.0,96243.0,0.155855]
[1739293988167,0.001,96244.0,96243.0,0.155855]
[1739293988568,0.002,96244.0,96243.0,0.155855]
[1739293989051,0.001,96244.0,96243.0,0.155855]
[1739293989228,0.001,96244.0,96243.0,0.157855]
[1739293989430,0.002,96244.0,96243.0,0.158855]
[1739293989776,0.002,96244.0,96243.0,0.181855]
[1739293990050,0.001,96244.0,96243.0,0.179855]
[1739293991039,0.001,96244.0,96243.0,0.20084567]
[1739293991942,0.001,96244.0,96243.0,0.45334932]
[1739293992093,0.001,96244.0,96243.0,0.4856234]
[1739293992308,0.00013341,96249.0,96248.0,0.328847]
[1739293992508,0.00013341,96249.0,96248.0,0.41962472]
[1739293992706,0.00013341,96249.0,96248.0,0.46362473]
[1739293992911,0.00013341,96249.0,96248.0,0.54072473]
[1739293994703,0.00013341,96249.0,96248.0,0.03227408]
[1739293995017,0.00013341,96249.0,96248.0,0.18812108]
[1739293995239,0.00113341,96249.0,96248.0,0.20112108]
[1739293995447,0.15582,96265.0,96250.0,0.155843]
[1739293995626,0.155821,96264.0,96251.0,0.03227408]
[1739293995829,0.155821,96264.0,96250.0,0.155843]
[1739293996040,0.00010175,96265.0,96248.0,0.044]
[1739293996254,0.00010175,96265.0,96249.0,0.03234853]
[1739293996496,0.00010175,96265.0,96251.0,0.155842]
[1739293996669,0.00010175,96265.0,96252.0,0.03234853]
[1739293996876,0.15592175,96265.0,96250.0,0.155842]
[1739293997216,0.00010175,96265.0,96248.0,0.021]
[1739293997393,0.155825,96262.0,96248.0,0.006]
[1739293997581,0.00010175,96265.0,96249.0,0.03238708]
[1739293997774,0.155821,96264.0,96251.0,0.003]
[1739293997974,0.15592175,96265.0,96251.0,0.003]
[1739293998178,0.00010175,96265.0,96250.0,0.001]
[1739293998382,0.155834,96257.0,96250.0,0.001]
[1739293998589,0.207774,96259.0,96248.0,0.004]
[1739293998786,0.155835,96256.0,96248.0,0.004]
[1739293999063,0.155834,96257.0,96242.0,0.155855]
[1739293999236,0.155834,96257.0,96243.0,0.03242244]
[1739293999443,0.0481,96262.0,96250.0,0.002]
[1739293999644,0.155842,96251.0,96250.0,0.002]
[1739294000705,0.207789,96252.0,96248.0,0.003]
[1739294000909,0.155842,96251.0,96250.0,0.008]
[1739294001111,0.44141382,96251.0,96250.0,0.008]
[1739294001319,0.28557182,96251.0,96234.0,0.08270615]
[1739294001538,0.155847,96248.0,96235.0,0.03242521]
[1739294001763,0.10250365,96250.0,96235.0,0.03242521]
[1739294001979,0.15585,96247.0,96232.0,0.155873]
[1739294002204,0.155848,96248.0,96233.0,0.17719641]
[1739294002448,0.155848,96248.0,96233.0,0.1331964]
[1739294002651,0.10250365,96250.0,96231.0,0.03242521]
[1739294002896,0.207796,96248.0,96231.0,0.03242521]
[1739294003108,0.10250365,96247.0,96231.0,0.03242521]
[1739294003306,0.17760365,96247.0,96231.0,0.03242521]
[1739294003482,0.155868,96235.0,96231.0,0.03242521]
[1739294003679,0.155867,96236.0,96231.0,0.03242521]
[1739294003897,0.207828,96234.0,96231.0,0.03242521]
[1739294004113,0.207828,96234.0,96223.0,0.00022386]
[1739294004312,0.44144182,96234.0,96223.0,0.00022386]
[1739294004533,0.28557182,96234.0,96223.0,0.00022386]
[1739294004673,0.44144182,96234.0,96228.0,0.00035748]
[1739294004881,0.207828,96233.0,96228.0,0.00035748]
[1739294005079,0.155876,96230.0,96229.0,0.03242008]
[1739294005287,0.155878,96229.0,96228.0,0.00035748]
[1739294005497,0.155878,96229.0,96228.0,0.03377199]
[1739294005708,0.155878,96229.0,96228.0,0.03277199]
[1739294005941,0.3281906,96229.0,96228.0,0.00035748]
[1739294006722,0.3281906,96229.0,96228.0,0.00235748]
[1739294007057,0.3281906,96229.0,96228.0,0.00735748]
[1739294007280,0.82447182,96234.0,96228.0,0.00735748]
[1739294007438,0.155874,96232.0,96215.0,0.12153863]
[1739294007663,0.155878,96229.0,96216.0,0.03238412]
[1739294007863,0.008,96229.0,96228.0,0.001]
[1739294008104,0.012,96229.0,96228.0,0.001]
[1739294008281,0.159878,96229.0,96213.0,0.17304916]
[1739294008483,0.02277891,96229.0,96214.0,0.03237518]
[1739294008684,0.04177891,96229.0,96228.0,0.001]
[1739294008932,0.019,96229.0,96228.0,0.001]
[1739294009303,0.022,96229.0,96228.0,0.001]
[1739294009499,0.177878,96229.0,96228.0,0.001]
[1739294009716,0.168878,96229.0,96228.0,0.001]
[1739294010106,0.155882,96227.0,96213.0,0.01714616]
[1739294010309,0.155882,96227.0,96214.0,0.03235814]
[1739294010484,0.161878,96229.0,96215.0,0.03235814]
[1739294010691,0.01585953,96228.0,96216.0,0.03235814]
[1739294010941,0.155883,96226.0,96217.0,0.03235814]
[1739294011144,0.155883,96226.0,96214.0,0.03235814]
[1739294011145,0.155884,96226.0,96214.0,0.03235814]
[1739294011357,0.15589,96222.0,96215.0,0.03235076]
[1739294011546,0.207844,96226.0,96214.0,0.03235076]
[1739294011723,0.15589,96222.0,96215.0,0.03235076]
[1739294011920,0.15589,96222.0,96214.0,0.03235076]
[1739294012120,0.15589,96222.0,96215.0,0.03235076]
[1739294012324,0.15589,96222.0,96216.0,0.03235076]
[1739294012550,0.003,96222.0,96213.0,0.00549691]
[1739294012936,0.003,96222.0,96214.0,0.03234428]
[1739294013607,0.003,96222.0,96213.0,0.00549691]
[1739294014214,0.0072209,96222.0,96214.0,0.001]
[1739294014551,0.0002209,96222.0,96213.0,0.00549691]
[1739294014747,0.0032209,96222.0,96213.0,0.00549691]
[1739294014953,0.0072209,96222.0,96213.0,0.00649691]
[1739294015174,0.0042209,96222.0,96213.0,0.00649691]
[1739294015375,0.0042209,96222.0,96214.0,0.03233582]
[1739294015376,0.0072209,96222.0,96214.0,0.03233582]
[1739294015714,0.0042209,96222.0,96213.0,0.00649691]
[1739294016241,0.0002209,96222.0,96213.0,0.00549691]
[1739294016478,0.0032209,96222.0,96213.0,0.00549691]
[1739294016682,0.0072209,96222.0,96214.0,0.001]
[1739294017262,0.0072209,96222.0,96213.0,0.00549691]
[1739294017263,0.155891,96221.0,96213.0,0.00549691]
[1739294017445,0.155893,96220.0,96213.0,0.00549691]
[1739294017644,0.02335083,96222.0,96213.0,0.001]
[1739294017785,0.207856,96221.0,96213.0,0.001]
[1739294017985,0.155892,96220.0,96213.0,0.001]
[1739294018279,0.1631109,96222.0,96213.0,0.001]
[1739294018482,0.155892,96221.0,96208.0,0.155911]
[1739294018677,0.157892,96220.0,96207.0,0.155913]
[1739294018797,0.002,96220.0,96204.0,0.00022407]
[1739294018999,0.157892,96220.0,96207.0,0.155913]
[1739294019416,0.155892,96220.0,96207.0,0.155913]
[1739294019868,0.157892,96220.0,96207.0,0.155913]
[1739294020315,0.157892,96220.0,96213.0,0.00022386]
[1739294020694,0.160892,96220.0,96213.0,0.00022386]
[1739294021261,0.157892,96220.0,96213.0,0.00022386]
[1739294021546,0.158892,96220.0,96213.0,0.00022386]
[1739294021932,0.26339565,96220.0,96213.0,0.00022386]
[1739294022484,0.10750365,96220.0,96207.0,0.207884]
[1739294022870,0.005,96220.0,96208.0,0.155912]
[1739294023236,0.29057182,96220.0,96208.0,0.155912]
[1739294023432,0.28757182,96220.0,96204.0,0.00022407]
[1739294023750,0.49842882,96220.0,96204.0,0.00022407]
[1739294023912,0.155894,96219.0,96206.0,0.155915]
[1739294024167,0.1475109,96219.0,96206.0,0.155915]
[1739294024382,0.155894,96219.0,96205.0,0.155917]
[1739294024583,0.44446382,96220.0,96204.0,0.00022407]
[1739294024753,0.44446382,96220.0,96207.0,0.155912]
[1739294025025,0.155894,96219.0,96206.0,0.155915]
[1739294025207,0.155896,96218.0,96204.0,0.00022407]
[1739294025342,0.28857182,96220.0,96204.0,0.00022407]
[1739294025343,0.155894,96219.0,96205.0,0.155916]
[1739294025543,0.157894,96219.0,96205.0,0.155916]
[1739294025744,0.155894,96219.0,96205.0,0.155916]
[1739294025949,0.28757182,96220.0,96204.0,0.00022407]
[1739294026301,0.157895,96219.0,96204.0,0.20811407]
[1739294026503,0.01667931,96218.0,96204.0,0.00022407]
[1739294026711,0.17257531,96218.0,96204.0,0.15614107]
[1739294027161,0.004,96219.0,96204.0,0.00022407]
[1739294027348,0.155895,96218.0,96204.0,0.00022407]
[1739294027547,0.002,96219.0,96203.0,0.02068656]
[1739294027747,0.156895,96218.0,96202.0,0.20811907]
[1739294028003,0.156895,96218.0,96203.0,0.15592]
[1739294028316,0.25939865,96218.0,96204.0,0.155917]
[1739294028525,0.10350365,96218.0,96202.0,0.00022407]
[1739294028743,0.10350365,96218.0,96202.0,0.15614507]
[1739294028952,0.25939965,96218.0,96202.0,0.00022407]
[1739294029166,1.08187147,96218.0,96202.0,0.00022407]
[1739294029396,1.08987147,96218.0,96204.0,0.001]
[1739294029584,0.98436782,96218.0,96204.0,0.001]
[1739294029788,0.155897,96217.0,96202.0,0.00022407]
[1739294029986,0.82647182,96218.0,96202.0,0.00022407]
[1739294030217,0.82647182,96218.0,96202.0,0.00122407]
[1739294030218,0.98736782,96218.0,96202.0,0.00122407]
[1739294030460,0.83147182,96218.0,96206.0,0.155915]
[1739294030621,0.82647182,96218.0,96212.0,0.155905]
[1739294030799,0.82647182,96218.0,96206.0,0.207887]
[1739294030979,0.004,96217.0,96212.0,0.155904]
[1739294031402,0.004,96217.0,96213.0,0.18829306]
[1739294031582,0.004,96217.0,96214.0,0.155902]
[1739294031809,0.004,96217.0,96208.0,0.20788]
[1739294032017,0.004,96217.0,96209.0,0.03239001]
[1739294032220,0.004,96217.0,96211.0,0.155906]
[1739294032424,0.82347182,96218.0,96210.0,0.144297]
[1739294032624,0.82347182,96218.0,96211.0,0.03240826]
[1739294032831,0.002,96217.0,96212.0,0.155905]
[1739294033057,0.82847182,96218.0,96213.0,0.03240826]
[1739294033416,0.82347182,96218.0,96213.0,0.03240826]
[1739294033591,0.002,96217.0,96213.0,0.03240826]
[1739294033894,0.002,96217.0,96214.0,0.03240826]
[1739294034066,0.002,96217.0,96211.0,0.155906]
[1739294034067,0.002,96217.0,96212.0,0.03240826]
[1739294034261,0.002,96217.0,96213.0,0.03340826]
[1739294034454,0.002,96217.0,96214.0,0.03240826]
[1739294034675,0.002,96217.0,96215.0,0.03240826]
[1739294034871,0.82357852,96218.0,96216.0,0.03240826]
[1739294035075,0.28567852,96218.0,96214.0,0.03240826]
[1739294035389,0.28567852,96218.0,96215.0,0.03240826]